Cogmind - Beta 13 @@@ ROGUE MODE // 2024.04.08 @ 19:35:41 Player: Patryk Z Result: Destroyed by H-81 Overseer with Heavy Linear Accelerator Performance ------------- Evolutions (8) 4000 Regions Visited (16) 3200 Robots Destroyed (60) 300 Value Destroyed (1799) 1799 Prototype IDs (5) 100 Alien Tech Used (0) 0 Bonus (1846) 1846 TOTAL SCORE: 11245 Bonus ------- Follower Combat Kills 866 Entered DSFs 500 Met Imprinter 300 Was Imprinted 300 Friendly Fire -120 Cogmind --------- Core Integrity 0/1450 Matter 124/300 Energy 85/100 System Corruption 35% Temperature Cool (18) Movement Core (50) Location -2/Research Parts ------- > --- POWER (2) -------- (None) > --- PROPULSION (6) --- Biometal Heavy Treads High-density Centrium Leg > --- UTILITY (11) ----- Advanced ECM Suite Makeshift System Shield > --- WEAPON (4) ------- (None) > --- INVENTORY (5) ---- Drone Bay (2/2) Heavy Gauss Cannon Heavy Gauss Cannon Heavy Gauss Cannon Peak State ------------ > --- POWER ------------ Light Quantum Reactor Light Quantum Reactor > --- PROPULSION ------- Centrium Leg Centrium Leg High-density Centrium Leg > --- UTILITY ---------- Advanced Signal Interpreter Improved Transmission Jammer Improved Cloaking Device Layered Light Armor Plating Point Defense System Makeshift System Shield Advanced Component Analysis Suite > --- WEAPON ----------- Thermic Laser Enhanced Nova Cannon > --- INVENTORY -------- Neutrino Core [Rating: 100] Favorites ----------- Power Ion Engine Engine Ion Engine Power Core Fission Core Reactor Light Quantum Reactor Propulsion Makeshift Leg Treads Light Treads Leg Makeshift Leg Wheel Centrium Wheel Hover Unit Antigrav System Flight Unit Field Propulsion Drive Utility Signal Interpreter Device Structural Scanner Storage Large Storage Unit Processor Signal Interpreter Hackware Makeshift System Shield Protection Layered Light Armor Plating Weapon Coil Gun Energy Gun Heavy Laser Energy Cannon Advanced Plasma Cannon Ballistic Gun Coil Gun Launcher Guided Missile Launcher Special Weapon Plasma Flamer Build | -11 -10 -10 -9 -9 -7 -6 -6 -5 -5 -5 -4 -4 -4 -3 -3 -2 ------- Run | Yrd Mat Min Mat Min Zio Pro Fac Fac Upp Upp Fac Upp Upp Res DSF Res Slots Evolved 16 | . . . 2 . . . 6 2 . . 2 . . 2 . 2 Power 1 | . . . . . . . 1 . . . . . . . . . Propulsion 4 | . . . . . . . 2 . . . 1 . . . . 1 Utility 9 | . . . 2 . . . 3 . . . 1 . . 2 . 1 Weapon 2 | . . . . . . . . 2 . . . . . . . . Parts Attached 148 | 7 11 12 5 9 4 14 16 4 2 10 6 4 6 2 9 27 Power 14 | 2 . 1 1 . . . 2 . . 2 . . 2 . 1 3 Engine 5 | 2 . 1 1 . . . 1 . . . . . . . . . Core 7 | . . . . . . . 1 . . 2 . . 2 . 1 1 Reactor 2 | . . . . . . . . . . . . . . . . 2 Propulsion 33 | 2 1 . . 2 . 3 3 . . 3 1 . 2 1 4 11 Treads 16 | 2 1 . . . . 2 3 . . 3 1 . 1 . . 3 Leg 9 | . . . . 2 . 1 . . . . . . . . . 6 Wheel 1 | . . . . . . . . . . . . . . . . 1 Hover 1 | . . . . . . . . . . . . . 1 . . . Flight 6 | . . . . . . . . . . . . . . 1 4 1 Utility 44 | 1 3 . 3 2 . 4 5 2 1 . 2 4 2 1 4 10 Device 25 | . . . 2 1 . 2 2 . 1 . 1 1 2 1 3 9 Storage 4 | 1 2 . . . . 1 . . . . . . . . . . Processor 2 | . 1 . . . . . . . . . . . . . 1 . Hackware 2 | . . . . . . . . . . . . 2 . . . . Protection 11 | . . . 1 1 . 1 3 2 . . 1 1 . . . 1 Artifact . | . . . . . . . . . . . . . . . . . Weapon 57 | 2 7 11 1 5 4 7 6 2 1 5 3 . . . . 3 Energy Gun 10 | 1 . . . . . 3 2 1 . 1 1 . . . . 1 Energy Cannon 7 | . . . . . . . . 1 1 1 2 . . . . 2 Ballistic Gun 9 | 1 1 5 . . . . 2 . . . . . . . . . Ballistic Cannon . | . . . . . . . . . . . . . . . . . Launcher 19 | . 3 2 . 3 3 3 2 . . 3 . . . . . . Special Weapon 12 | . 3 4 1 2 1 1 . . . . . . . . . . Impact Weapon . | . . . . . . . . . . . . . . . . . Slashing Weapon . | . . . . . . . . . . . . . . . . . Piercing Weapon . | . . . . . . . . . . . . . . . . . Special Melee Weapon . | . . . . . . . . . . . . . . . . . Unidentified Prototypes 5 | . . . 1 1 2 . . . . . . . . . . 1 Parts Lost 42 | . . . 2 . . 2 1 . . . 7 1 . . 8 21 Power 6 | . . . 1 . . . . . . . 2 . . . . 3 Propulsion 14 | . . . . . . 1 . . . . 1 . . . 3 9 Utility 18 | . . . 1 . . . 1 . . . 3 1 . . 5 7 Weapon 4 | . . . . . . 1 . . . . 1 . . . . 2 Highest Loss Streak 8 | . . . 2 . . 2 1 . . . 2 1 . . 8 6 To Critical Strikes . | . . . . . . . . . . . . . . . . . Average Slot Usage (%) 85 | . 97 100 94 100 94 91 98 100 100 96 60 11 26 31 38 36 Engine 8 | . 14 14 10 11 11 11 7 5 5 . . . . . . . Core 1 | . . . . . . . 4 5 5 10 3 . . . . . Treads 12 | . 27 28 22 12 . 6 26 23 23 23 14 . . . . 1 Leg 8 | . . . . 9 22 15 . . . . . . . . . 8 Device 12 | . . . 15 14 22 20 11 8 6 11 9 2 7 10 13 9 Storage 8 | . 13 14 11 11 11 11 6 5 5 5 2 . . . . . Processor 9 | . 12 14 11 11 11 11 6 5 5 5 5 5 5 4 4 2 Protection 4 | . . . 2 7 . 1 20 19 21 17 12 . . . . 1 Energy Gun 1 | . . . . . . 1 7 5 5 3 1 . . . . . Ballistic Gun 4 | . 13 13 . . . . 5 11 11 6 . . . . . . Launcher 5 | . . 1 . 5 10 12 . . . 6 7 . . . . . Special Weapon 4 | . 13 12 22 16 5 . . . . . . . . . . . Naked Turns . | . . . . . . . . . . . . . . . . . Heaviest Build 96 | 13 30 31 35 40 44 48 69 81 84 84 96 10 24 13 14 56 Greatest Support 122 | 40 40 40 40 40 40 40 96 88 88 94 122 3 30 11 21 122 Greatest Overweight (x) 3 | . . . . 1 1 2 . . . 1 2 3 3 1 1 1 Average Overweight (x) . | . . . . . . 1 . . . . . . 1 . . . Largest Inventory Capacity 15 | 8 15 15 15 15 15 15 15 15 15 15 15 5 5 5 5 5 Average Capacity 13 | 7 12 15 15 15 15 15 15 15 15 15 10 5 5 5 5 5 Most Carried 15 | 4 15 15 14 15 15 15 15 15 15 15 8 5 5 5 5 5 Average Carried 12 | 2 9 14 12 14 14 13 11 14 14 12 5 4 4 5 4 4 Final Capacity 15 | 8 15 15 15 15 15 15 15 15 15 15 5 5 5 5 5 5 Final Carried 15 | 4 15 15 14 15 12 15 15 15 15 9 5 5 5 5 5 4 Class Distribution -------------------- 68% | Mutant 14% | Scavenger-Tank 6% | Scavenger-Mutant 4% | Hacker-Mutant Dominant Class ---------------- Mutant | -10/Materials Mutant | -10/Mines Mutant | -9/Materials Mutant | -9/Mines Mutant | -7/Zion Mutant | -6/Proximity Caves Scavenger-Mutant | -6/Factory Scavenger-Tank | -5/Factory Scavenger-Tank | -5/Upper Caves Scavenger-Tank | -5/Upper Caves Mutant | -4/Factory Mutant | -4/Upper Caves Hacker-Mutant | -4/Upper Caves Hacker-Mutant | -3/Research Hacker-Mutant | -3/DSF Mutant | -2/Research Resources | -11 -10 -10 -9 -9 -7 -6 -6 -5 -5 -5 -4 -4 -4 -3 -3 -2 ----------- Run | Yrd Mat Min Mat Min Zio Pro Fac Fac Upp Upp Fac Upp Upp Res DSF Res Matter Collected 2354 | 255 10 321 40 165 43 552 145 72 126 203 . 22 239 . . 161 Remotely . | . . . . . . . . . . . . . . . . . Salvage Created 1432 | . 211 210 3 130 . 293 228 . 120 134 103 . . . . . Parts 89 | . 26 25 4 8 . 10 7 . 4 4 1 . . . . . Haulers Intercepted . | . . . . . . . . . . . . . . . . . Recyclers Shooed . | . . . . . . . . . . . . . . . . . Parts Field Recycled . | . . . . . . . . . . . . . . . . . Retrieved Matter . | . . . . . . . . . . . . . . . . . Parts Self-Destructed 51 | . . . . . . 24 . . 23 4 . . . . . . Prevented 8 | . . . . . . 8 . . . . . . . . . . Kills | -11 -10 -10 -9 -9 -7 -6 -6 -5 -5 -5 -4 -4 -4 -3 -3 -2 ------- Run | Yrd Mat Min Mat Min Zio Pro Fac Fac Upp Upp Fac Upp Upp Res DSF Res Combat Hostiles Destroyed 44 | . 7 6 2 6 . 12 3 . 2 3 3 . . . . . Melee 1 | . . . . . . 1 . . . . . . . . . . Guns 3 | . . . . . . . . . 2 1 . . . . . . Cannons 5 | . . 1 2 . . . . . . 1 1 . . . . . AOE 35 | . 7 5 . 6 . 11 3 . . 1 2 . . . . . Classes Destroyed 13 | . 5 2 . . . 4 . . . 1 1 . . . . . Worker 2 | . 1 1 . . . . . . . . . . . . . . Builder 6 | . 2 3 1 . . . . . . . . . . . . . Tunneler 3 | . . 3 . . . . . . . . . . . . . . Recycler 2 | . . 1 . . . . 1 . . . . . . . . . Watcher 2 | . 1 . . . . . 1 . . . . . . . . . Swarmer 16 | . 2 6 2 3 . 1 . . . 2 . . . . . . Saboteur 1 | . . . . . . 1 . . . . . . . . . . Grunt 20 | . 5 1 . 3 . 7 2 . 2 . . . . . . . Brawler 1 | . . . . . . 1 . . . . . . . . . . Duelist 2 | . . . . . . 1 1 . . . . . . . . . Sentry 2 | . . . . . . . . . . 1 1 . . . . . Hunter 2 | . . . . . . . . . . . 2 . . . . . Behemoth 1 | . . . . . . 1 . . . . . . . . . . Best Kill Streak 6 | . 5 3 2 3 . 6 3 . 2 2 3 . . . . . Combat Bots Only 6 | . 3 3 2 3 . 6 3 . 2 2 3 . . . . . Max Kills in Single Turn 3 | . 3 1 1 2 . 1 2 . 1 2 1 . . . . . Gunslinging . | . . . . . . . . . . . . . . . . . Exploded 2 | . 2 1 . 2 . 1 2 . . 1 1 . . . . . Melee 1 | . . . . . . 1 . . . . . . . . . . Uniques/NPCs Destroyed . | . . . . . . . . . . . . . . . . . Combat | -11 -10 -10 -9 -9 -7 -6 -6 -5 -5 -5 -4 -4 -4 -3 -3 -2 -------- Run | Yrd Mat Min Mat Min Zio Pro Fac Fac Upp Upp Fac Upp Upp Res DSF Res Hostile Shots Fired 835 | . 37 28 14 14 . 37 6 . 43 31 72 16 . . 57 480 Missed 322 | . 15 10 3 6 . 11 1 . 11 7 21 5 . . 17 215 Damage Taken 12541 | . 250 166 274 74 . 453 418 . 415 1098 1521 273 . . 983 6616 Core 3898 | . 22 33 16 . . 86 58 . 85 729 675 198 . . 509 1487 Absorbed by Shields 446 | . . . . . . . . . 83 121 159 . . . 83 . Regen/Repaired (Parts) 38 | . 38 . . . . . . . . . . . . . . . Core Remaining (%) 63 | 100 . 78 . . . 74 93 . . 18 . . 24 . 60 . Volleys Fired 189 | . 55 45 17 6 7 23 4 . 8 12 12 . . . . . Largest 4 | . 1 2 1 1 1 2 2 . 4 4 4 . . . . . Hottest 257 | . 100 120 100 30 100 78 129 . 227 257 202 . . . . . Shots Fired 268 | . 55 62 17 6 7 27 8 . 32 24 30 . . . . . Gun 78 | . 1 25 . . . 1 4 . 24 17 6 . . . . . Cannon 21 | . . . . . . . . . 8 6 7 . . . . . Launcher 65 | . 6 5 . 6 . 26 4 . . 1 17 . . . . . Special 104 | . 48 32 17 . 7 . . . . . . . . . . . Kinetic 51 | . 1 25 . . . . 2 . 16 7 . . . . . . Thermal 148 | . 48 32 17 . 7 . 1 . 16 14 13 . . . . . Explosive 65 | . 6 5 . 6 . 26 4 . . 1 17 . . . . . Electromagnetic 4 | . . . . . . 1 1 . . 2 . . . . . . Robot Hit Streak 19 | . 2 7 3 7 . 19 3 . 3 8 8 . . . . . Robot Miss Streak 5 | . 5 4 3 . . 1 1 . 2 3 2 . . . . . Penetration Max 1 | . . . . . . . . . . 1 . . . . . . Secondary Targets . | . . . . . . . . . . . . . . . . . Shots Hit Robots 107 | . 2 30 4 6 . 15 5 . 11 14 20 . . . . . Core Hits 114 | . 20 19 3 8 . 28 8 . 5 8 13 . . . 1 1 Critical Kills 1 | . . . . . . . . . 1 . . . . . . . Critical Parts Destroyed 1 | . . 1 . . . . . . . . . . . . . . Critical Strikes 4 | . . 2 1 . . . . . 1 . . . . . . . Burn 2 | . . 1 1 . . . . . . . . . . . . . Destroy 2 | . . 1 . . . . . . 1 . . . . . . . Melee Attacks . | . . . . . . . . . . . . . . . . . Impact . | . . . . . . . . . . . . . . . . . Slashing . | . . . . . . . . . . . . . . . . . Piercing . | . . . . . . . . . . . . . . . . . Sneak Attacks . | . . . . . . . . . . . . . . . . . Combat Hostiles . | . . . . . . . . . . . . . . . . . Follow-up Attacks . | . . . . . . . . . . . . . . . . . Damage Inflicted 5749 | . 525 657 61 347 . 2083 508 . 243 382 891 . . . 13 39 Guns 752 | . . 164 . . . 16 34 . 169 261 108 . . . . . Cannons 303 | . . . . . . . . . 74 103 126 . . . . . Explosions 4356 | . 501 292 . 347 . 2067 474 . . 18 657 . . . . . Melee . | . . . . . . . . . . . . . . . . . Ramming 52 | . . . . . . . . . . . . . . . 13 39 Kinetic 517 | . . 164 . . . . 23 . 149 181 . . . . . . Thermal 821 | . 24 201 61 . . . 67 . 94 140 234 . . . . . Explosive 4262 | . 501 292 . 347 . 2067 407 . . 18 630 . . . . . Electromagnetic 97 | . . . . . . 16 11 . . 43 27 . . . . . Impact . | . . . . . . . . . . . . . . . . . Slashing . | . . . . . . . . . . . . . . . . . Piercing . | . . . . . . . . . . . . . . . . . Highest Corruption 35 | . . . 3 3 3 . . . 1 1 . . . . . 35 Average Corruption 6 | . . . 2 3 3 . . . 1 1 . . . . . 22 Corruption Purged . | . . . . . . . . . . . . . . . . . Corruption Blocked . | . . . . . . . . . . . . . . . . . Effects 65 | . . . 4 24 1 . . . . 5 . . . . . 31 Message Errors 21 | . . . 2 10 1 . . . . . . . . . . 8 Matter Fused 11 | . . . . 7 . . . . . 1 . . . . . 3 Heat Flow Errors 8 | . . . . 3 . . . . . 2 . . . . . 3 Energy Discharges 8 | . . . 2 2 . . . . . . . . . . . 4 Parts Rejected 2 | . . . . . . . . . . . . . . . . 2 Data Loss (minor) 5 | . . . . 1 . . . . . . . . . . . 4 Data Loss (major) 2 | . . . . 1 . . . . . . . . . . . 1 Alerts 2 | . . . . . . . . . . 2 . . . . . . Misdirections 6 | . . . . . . . . . . . . . . . . 6 Overload Shots . | . . . . . . . . . . . . . . . . . Overflow Damage 117 | . 8 7 . 17 . 24 18 . . . 43 . . . . . Projectiles 4 | . . 4 . . . . . . . . . . . . . . Explosions 113 | . 8 3 . 17 . 24 18 . . . 43 . . . . . Melee . | . . . . . . . . . . . . . . . . . Knockbacks . | . . . . . . . . . . . . . . . . . Impact . | . . . . . . . . . . . . . . . . . Kinetic . | . . . . . . . . . . . . . . . . . Secondary . | . . . . . . . . . . . . . . . . . Self-Inflicted Damage 447 | . 55 36 . . . 41 295 . . 6 . . . . 6 8 Shots 12 | . 3 3 . . . 1 4 . . 1 . . . . . . Rammed 7 | . . . . . . . . . . . . . . . 4 3 Targets Rammed 11 | . . . . . . . . . . . . . . . 4 7 Kicked 4 | . . . . . . . . . . . . . . . . 4 Crushed . | . . . . . . . . . . . . . . . . . Highest Temperature 761 | . 80 300 224 250 24 42 181 . 395 761 653 . . . . 235 Average Temperature 114 | . 19 48 67 115 10 15 90 . 126 322 268 . . . . 100 Received Heat Transfer 848 | . 30 . . 9 . 90 27 . 40 74 116 54 . . . 408 Effects 56 | . . 1 . . . . . . 3 37 15 . . . . . Shutdowns 15 | . . . . . . . . . 2 11 2 . . . . . Energy Bleed 3 | . . 1 . . . . . . . 1 1 . . . . . Interference 13 | . . . . . . . . . . 6 7 . . . . . Matter Decay 2 | . . . . . . . . . . 1 1 . . . . . Short Circuit 9 | . . . . . . . . . 1 7 1 . . . . . Damage (minor) 3 | . . . . . . . . . . 3 . . . . . . Damage (major) 3 | . . . . . . . . . . 3 . . . . . . Damage (core) 8 | . . . . . . . . . . 5 3 . . . . . Siege Activations . | . . . . . . . . . . . . . . . . . Robots Corrupted . | . . . . . . . . . . . . . . . . . Combat Hostiles . | . . . . . . . . . . . . . . . . . Parts Fried . | . . . . . . . . . . . . . . . . . Impact Corruptions . | . . . . . . . . . . . . . . . . . Robots Melted . | . . . . . . . . . . . . . . . . . Combat Hostiles . | . . . . . . . . . . . . . . . . . Parts Melted 5 | . . 3 1 . . . . . . 1 . . . . . . Heat Transferred 2157 | . 50 1000 450 . . . . . 137 224 296 . . . . . Parts Sabotaged 3 | . . . . . . 3 . . . . . . . . . . Parts Stolen . | . . . . . . . . . . . . . . . . . Parts Stripped . | . . . . . . . . . . . . . . . . . Power Chain Reactions 1 | . . . . . . . 1 . . . . . . . . . Alert | -11 -10 -10 -9 -9 -7 -6 -6 -5 -5 -5 -4 -4 -4 -3 -3 -2 ------- Run | Yrd Mat Min Mat Min Zio Pro Fac Fac Upp Upp Fac Upp Upp Res DSF Res Peak Influence 430 | . 130 241 89 158 . . 296 46 . . 290 . . 52 54 430 Initial 98 | . . 48 . 34 . . 98 46 . . 56 . . 47 39 5 Average 75 | . 28 66 37 55 . . 190 46 . . 220 . . 51 38 103 Maximum Alert Level 2 | . . 1 . . . . 1 . . . 1 . . . . 2 Low Security (%) 84 | 100 100 86 100 100 . . 25 100 . . 17 . . 100 100 77 Level 1 15 | . . 13 . . . . 74 . . . 82 . . . . 18 Level 2 . | . . . . . . . . . . . . . . . . 4 Level 3 . | . . . . . . . . . . . . . . . . . Level 4 . | . . . . . . . . . . . . . . . . . Level 5 . | . . . . . . . . . . . . . . . . . High Security . | . . . . . . . . . . . . . . . . . Max Security . | . . . . . . . . . . . . . . . . . Squads Dispatched 18 | . 1 . 3 . . 1 1 . . . 3 . . . 2 7 Investigation 5 | . . . 1 . . . 1 . . . 1 . . . . 2 Extermination 2 | . . . . . . . . . . . 1 . . . . 1 Reinforcement 9 | . 1 . 2 . . . . . . . 1 . . . 2 3 Assault 2 | . . . . . . 1 . . . . . . . . . 1 Garrison . | . . . . . . . . . . . . . . . . . Intercept . | . . . . . . . . . . . . . . . . . Searches Triggered 1 | . . . . . . . . . . . . . . . . 1 Construction Impeded . | . . . . . . . . . . . . . . . . . Haulers Reinforced . | . . . . . . . . . . . . . . . . . Active Scanning Responses . | . . . . . . . . . . . . . . . . . Cargo Convoy Interrupts . | . . . . . . . . . . . . . . . . . Stealth | -11 -10 -10 -9 -9 -7 -6 -6 -5 -5 -5 -4 -4 -4 -3 -3 -2 --------- Run | Yrd Mat Min Mat Min Zio Pro Fac Fac Upp Upp Fac Upp Upp Res DSF Res Distress Signals 7 | . 1 . 1 . . . . . . . . . . . . 5 Communications Jammed 34 | . . . . . . . . . . . . . . . . 34 Distress Signals 34 | . . . . . . . . . . . . . . . . 34 Times Spotted 159 | . 12 8 2 9 . 28 4 . 15 6 7 4 . . 9 55 Peak Tracking Total 24 | . 4 3 2 4 . 8 3 . 5 5 3 10 . . 7 24 Tactical Retreats 31 | . . . . . . 9 . . . 2 1 3 . . 2 14 Traps | -11 -10 -10 -9 -9 -7 -6 -6 -5 -5 -5 -4 -4 -4 -3 -3 -2 ------- Run | Yrd Mat Min Mat Min Zio Pro Fac Fac Upp Upp Fac Upp Upp Res DSF Res Traps Triggered 5 | . . . 1 . . . . . . . . . . . 2 2 Indirectly . | . . . . . . . . . . . . . . . . . Trap Hack Attempts . | . . . . . . . . . . . . . . . . . Triggered . | . . . . . . . . . . . . . . . . . Disarmed . | . . . . . . . . . . . . . . . . . Reprogrammed . | . . . . . . . . . . . . . . . . . Reused . | . . . . . . . . . . . . . . . . . Traps Extracted . | . . . . . . . . . . . . . . . . . Installed . | . . . . . . . . . . . . . . . . . Triggered . | . . . . . . . . . . . . . . . . . Machines | -11 -10 -10 -9 -9 -7 -6 -6 -5 -5 -5 -4 -4 -4 -3 -3 -2 ---------- Run | Yrd Mat Min Mat Min Zio Pro Fac Fac Upp Upp Fac Upp Upp Res DSF Res Machines Disabled 10 | . 2 . . . . . 4 . 2 . 2 . . . . . Max in Single Turn 3 | . 2 . . . . . 3 . 2 . 1 . . . . . Garrison Access 1 | . . . . . . . . . . . . . . . . 1 Machines Repaired . | . . . . . . . . . . . . . . . . . Machines Dismantled . | . . . . . . . . . . . . . . . . . Machines Sabotaged . | . . . . . . . . . . . . . . . . . Overloaded Fab Kills . | . . . . . . . . . . . . . . . . . Hacking | -11 -10 -10 -9 -9 -7 -6 -6 -5 -5 -5 -4 -4 -4 -3 -3 -2 --------- Run | Yrd Mat Min Mat Min Zio Pro Fac Fac Upp Upp Fac Upp Upp Res DSF Res Machines Accessed 18 | . 6 . 1 1 . . 1 1 1 . 2 2 . 1 . 2 Terminals 7 | . 3 . 1 . . . . . 1 . 1 . . 1 . . Fabricators 1 | . . . . . . . . 1 . . . . . . . . Repair Stations 3 | . 1 . . . . . 1 . . . 1 . . . . . Recycling Units 3 | . 2 . . . . . . . . . . . . . . 1 Scanalyzers . | . . . . . . . . . . . . . . . . . Garrison Access 1 | . . . . . . . . . . . . . . . . 1 Total Hacks 40 | . 20 . 4 1 . . 3 1 1 . 2 2 . 1 . 5 Successful 21 | . 12 . 3 1 . . 1 . 1 . . 2 . 1 . . Failed 19 | . 8 . 1 . . . 2 1 . . 2 . . . . 5 Catastrophic 3 | . 2 . . . . . . . . . . . . . . 1 Database Lockouts . | . . . . . . . . . . . . . . . . . Manual 15 | . 1 . . . 3 . . 2 1 . 2 3 . 2 . 1 Terminals 15 | . 8 . 4 . . . . . 1 . 1 . . 1 . . Fabricators 1 | . . . . . . . . 1 . . . . . . . . Repair Stations 7 | . 3 . . . . . 3 . . . 1 . . . . . Recycling Units 11 | . 9 . . . . . . . . . . . . . . 2 Scanalyzers . | . . . . . . . . . . . . . . . . . Garrison Access 3 | . . . . . . . . . . . . . . . . 3 Terminal Hacks 10 | . 2 . 3 1 . . . . 1 . . 2 . 1 . . Record 5 | . . . 3 . . . . . 1 . . 1 . . . . Open Door 2 | . . . . 1 . . . . . . . 1 . . . . Open DSF 1 | . . . . . . . . . . . . . . 1 . . Alert Level 2 | . 2 . . . . . . . . . . . . . . . Fabricator Hacks . | . . . . . . . . . . . . . . . . . Repair Station Hacks 3 | . 2 . . . . . 1 . . . . . . . . . Scan Component 2 | . 1 . . . . . 1 . . . . . . . . . Repair 1 | . 1 . . . . . . . . . . . . . . . Recycling Unit Hacks 8 | . 8 . . . . . . . . . . . . . . . Recycle Component 2 | . 2 . . . . . . . . . . . . . . . Process 2 | . 2 . . . . . . . . . . . . . . . Report Inventory 2 | . 2 . . . . . . . . . . . . . . . Retrieve Matter 1 | . 1 . . . . . . . . . . . . . . . Retrieve Components 1 | . 1 . . . . . . . . . . . . . . . Scanalyzer . | . . . . . . . . . . . . . . . . . Garrison Access Hacks . | . . . . . . . . . . . . . . . . . Unauthorized Hacks . | . . . . . . . . . . . . . . . . . Terminals . | . . . . . . . . . . . . . . . . . Fabricators . | . . . . . . . . . . . . . . . . . Repair Stations . | . . . . . . . . . . . . . . . . . Recycling Units . | . . . . . . . . . . . . . . . . . Scanalyzers . | . . . . . . . . . . . . . . . . . Garrison Access . | . . . . . . . . . . . . . . . . . Data Cores Recovered . | . . . . . . . . . . . . . . . . . Used . | . . . . . . . . . . . . . . . . . Hacking Detections 12 | . 4 . 1 . . . 1 2 . . 2 . . . . 2 Full Trace Events 2 | . . . . . . . 1 . . . 1 . . . . . Feedback Events . | . . . . . . . . . . . . . . . . . Feedback Blocked . | . . . . . . . . . . . . . . . . . Robot Schematics Acquired . | . . . . . . . . . . . . . . . . . Robots Built . | . . . . . . . . . . . . . . . . . Authchips . | . . . . . . . . . . . . . . . . . Time . | . . . . . . . . . . . . . . . . . Total Robot Build Rating . | . . . . . . . . . . . . . . . . . Part Schematics Acquired . | . . . . . . . . . . . . . . . . . Parts Built . | . . . . . . . . . . . . . . . . . Authchips . | . . . . . . . . . . . . . . . . . Time . | . . . . . . . . . . . . . . . . . Total Part Build Rating . | . . . . . . . . . . . . . . . . . Parts Repaired 1 | . 1 . . . . . . . . . . . . . . . Time 26 | . 26 . . . . . . . . . . . . . . . Parts Recycled 2 | . 2 . . . . . . . . . . . . . . . Recycled Matter 72 | . 72 . . . . . . . . . . . . . . . Retrieved Matter 72 | . 72 . . . . . . . . . . . . . . . Retrieved Components 9 | . 9 . . . . . . . . . . . . . . . Parts Scanalyzed . | . . . . . . . . . . . . . . . . . Part Schematics Acquired . | . . . . . . . . . . . . . . . . . Parts Damaged . | . . . . . . . . . . . . . . . . . Bothacking | -11 -10 -10 -9 -9 -7 -6 -6 -5 -5 -5 -4 -4 -4 -3 -3 -2 ------------ Run | Yrd Mat Min Mat Min Zio Pro Fac Fac Upp Upp Fac Upp Upp Res DSF Res Used RIF Installer . | . . . . . . . . . . . . . . . . . Robots Hacked . | . . . . . . . . . . . . . . . . . Non-combat . | . . . . . . . . . . . . . . . . . Combat . | . . . . . . . . . . . . . . . . . Robot Hacks Applied . | . . . . . . . . . . . . . . . . . Relay Couplers Released 1 | . . . . . . . . . . . . . . . . 1 Machine Destruction 1 | . . . . . . . . . . . . . . . . 1 Fabnet Peak Effective % . | . . . . . . . . . . . . . . . . . Robots Rewired . | . . . . . . . . . . . . . . . . . Allies Hacked . | . . . . . . . . . . . . . . . . . Hacks Repelled . | . . . . . . . . . . . . . . . . . Allies | -11 -10 -10 -9 -9 -7 -6 -6 -5 -5 -5 -4 -4 -4 -3 -3 -2 -------- Run | Yrd Mat Min Mat Min Zio Pro Fac Fac Upp Upp Fac Upp Upp Res DSF Res Total Allies 20 | . . 3 . 2 4 8 . 2 . 1 . . . . . . Largest Group 6 | . . 3 1 2 4 6 . 2 2 1 . . . . . . Highest-Rated Group 238 | . . 40 16 49 153 238 . 192 192 127 . . . . . . Highest-Rated Ally 127 | . . 16 16 31 41 85 . 96 96 127 . . . . . . Total Orders 60 | . . 3 1 . 2 30 4 . . . 1 6 6 2 5 . ROAM 1 | . . . . . . 1 . . . . . . . . . . GUARD 1 | . . 1 . . . . . . . . . . . . . . AID 3 | . . 2 1 . . . . . . . . . . . . . EXPLORE 35 | . . . . . 2 21 1 . . . 1 3 3 1 3 . RETURN 20 | . . . . . . 8 3 . . . . 3 3 1 2 . Ally Attacks 168 | . . 12 6 9 . 112 . . 29 . . . . . . . Total Damage 2913 | . . 88 45 148 . 1538 . . 1094 . . . . . . . Kills 38 | . . 3 2 4 . 19 . . 10 . . . . . . . Allies Corrupted 1 | . . . . . . 1 . . . . . . . . . . Allies Melted . | . . . . . . . . . . . . . . . . . Intel | -11 -10 -10 -9 -9 -7 -6 -6 -5 -5 -5 -4 -4 -4 -3 -3 -2 ------- Run | Yrd Mat Min Mat Min Zio Pro Fac Fac Upp Upp Fac Upp Upp Res DSF Res Robot Analysis Total . | . . . . . . . . . . . . . . . . . Derelict Logs Recovered 14 | . . 2 . . 2 3 . . 3 1 . 3 . . . . Drone Launches 108 | . . . . 6 . 84 3 . . . 2 5 3 1 4 . Drone Recoveries 104 | . . . . . . 87 3 . . . 1 5 3 1 4 . Exploration | -11 -10 -10 -9 -9 -7 -6 -6 -5 -5 -5 -4 -4 -4 -3 -3 -2 ------------- Run | Yrd Mat Min Mat Min Zio Pro Fac Fac Upp Upp Fac Upp Upp Res DSF Res Turns Passed 15554 | 82 1053 1691 330 1270 2349 3696 439 198 1647 375 346 630 358 104 190 796 Spaces Moved 8189 | 45 475 905 142 785 1332 1367 203 110 849 168 164 593 149 68 92 742 Core 809 | 6 . . . . . . . . . . 90 593 51 . . 69 Treads 3845 | 39 475 905 142 432 . 441 203 110 849 168 74 . 7 . . . Legs 3053 | . . . . 353 1332 926 . . . . . . . . . 442 Wheels . | . . . . . . . . . . . . . . . . . Hover 242 | . . . . . . . . . . . . . 91 68 83 . Flight 240 | . . . . . . . . . . . . . . . 9 231 Fastest Speed 34 | 50 160 160 160 140 140 140 165 165 165 162 50 50 60 60 34 50 Average Speed 157 | 145 160 160 160 151 166 223 165 165 165 164 137 63 147 114 93 98 Slowest Speed 280 | 160 160 160 160 210 210 280 165 165 165 246 242 200 200 120 120 120 Overloaded Moves . | . . . . . . . . . . . . . . . . . Propulsion Burnouts . | . . . . . . . . . . . . . . . . . Robots Hopped 4 | . . . . . . . . . . . . . . . . 4 Cave-ins Triggered 1 | . . . 1 . . . . . . . . . . . . . Exploration Rate (%) 50 | 5 71 96 15 99 93 99 9 3 84 28 6 95 46 5 77 34 Regions Visited 16 Branch Regions 8 Pre-discovered Areas 7 | . . 1 . . 3 . . . 1 . . 2 . . . . Known Exits Taken 14 | . 1 1 1 1 1 1 1 1 1 1 1 1 1 1 . . Unknown Exits Taken 1 | 1 . . . . . . . . . . . . . . . . Scrap Searched 13 | . . 1 . 1 3 1 . . 2 2 . 2 1 . . . Spaces Dug 60 | . 43 7 9 . . . . . 1 . . . . . . . Terrain Destroyed 500 | . 91 45 9 49 . 169 65 . 7 11 54 . . . . . Melee . | . . . . . . . . . . . . . . . . . Projectile 74 | . 44 9 9 . . . . . 7 5 . . . . . . AOE 426 | . 47 36 . 49 . 169 65 . . 6 54 . . . . . Terrain Rammed . | . . . . . . . . . . . . . . . . . Walls Destroyed . | . . . . . . . . . . . . . . . . . Machines Disabled . | . . . . . . . . . . . . . . . . . Actions | -11 -10 -10 -9 -9 -7 -6 -6 -5 -5 -5 -4 -4 -4 -3 -3 -2 --------- Run | Yrd Mat Min Mat Min Zio Pro Fac Fac Upp Upp Fac Upp Upp Res DSF Res Total 10460 | 61 618 1046 204 862 1446 1989 296 127 1077 251 265 847 287 93 194 797 Wait 1748 | . 48 79 38 51 86 565 64 11 208 52 67 245 127 22 78 7 Move 8166 | 44 474 904 141 784 1331 1366 202 109 848 167 163 592 148 67 92 734 Hop 4 | . . . . . . . . . . . . . . . . 4 Pick Up 98 | 10 21 3 3 5 6 13 8 2 5 1 1 5 1 . . 14 Fast Attach 35 | . 2 . . 3 . 1 . . 1 . 1 . 5 2 8 12 Attach 64 | 6 3 . 4 . 4 9 8 2 . 4 3 4 1 . 1 15 Detach 14 | . 1 . . . 2 2 1 . . 1 2 . 1 1 2 1 Swap 49 | 1 6 12 1 6 . 4 8 2 1 6 2 . . . . . Drop 74 | . 8 3 . 7 10 5 1 1 6 8 14 1 4 1 3 2 Fire 189 | . 55 45 17 6 7 23 4 . 8 12 12 . . . . . Melee . | . . . . . . . . . . . . . . . . . Ram 7 | . . . . . . . . . . . . . . . 3 4 Kick 4 | . . . . . . . . . . . . . . . . 4 Crush . | . . . . . . . . . . . . . . . . . Escape Stasis 7 | . . . . . . . . . . . . . . . 7 . Rewire 1 | . . . . . . 1 . . . . . . . . . . Trap . | . . . . . . . . . . . . . . . . . Miscellaneous . | . . . . . . . . . . . . . . . . . Route ------- -11/Scrapyard -10/Materials (discovered 3 exits: *Mat x2 / *Min) -10/Mines (discovered 2 exits: *Mat x2) -9/Materials (discovered 3 exits: *Min / *Sto x2) -9/Mines (discovered 4 exits: *Mat x2 / *Exi / *Zio) -7/Zion -6/Proximity Caves -6/Factory (discovered 2 exits: *Fac / Low) -5/Factory (discovered 2 exits: *Upp / Ext) -5/Upper Caves -5/Upper Caves -4/Factory -4/Upper Caves -4/Upper Caves -3/Research (discovered 2 exits: Res / DSF) -3/DSF -2/Research (discovered 1 exit: [*Acc]) History --------- Turn | Location | Event 23 | -11/Scrapyard | Discovered new exit (range 15) 83 | -11/Scrapyard | Entered Materials 311 | -10/Materials | Build established: Mutant 495 | -10/Materials | Discovered new exit (range 10) 534 | -10/Materials | Identified exit to Materials 893 | -10/Materials | Repaired Lgt. Treads 962 | -10/Materials | Discovered exit to Materials (range 7) 1113 | -10/Materials | Discovered new exit (range 6) 1122 | -10/Materials | Identified exit to Mines 1136 | -10/Materials | Entered Mines 1182 | -10/Mines | Found a hidden stash of uninstalled traps 1513 | -10/Mines | A weapon hastily lodged in a ceiling crevice suddenly fell to the ground 1537 | -10/Mines | Learned location of Storage (-9) 1537 | -10/Mines | Discovered exit to Materials (range 8) 1815 | -10/Mines | Assisted by bots powering up and referring to "LRC-V3" 2101 | -10/Mines | Discovered exit to Materials (range 8) 2321 | -10/Mines | Found a damaged Exp. Sensor Array with a note attached 2330 | -10/Mines | Found Prototype Device 2827 | -10/Mines | Entered Materials 2827 | -9/Materials | Accompanied by 1 ally 2827 | -9/Materials | Evolved 2 slots: Utility x2 2828 | -9/Materials | Discovered new exit (range 15) 2828 | -9/Materials | Identified exit to Storage 2828 | -9/Materials | Identified Exp. Sensor Array 2949 | -9/Materials | Crushed by falling debris 3151 | -9/Materials | Discovered new exit (range 5) 3155 | -9/Materials | Identified exit to Mines 3157 | -9/Materials | Entered Mines 3171 | -9/Mines | A Derelict revealed a hidden shortcut to a safe place 3180 | -9/Mines | Identified exit to Zion 3357 | -9/Mines | Deemed a non-threat by the Exiles lab entrance 3357 | -9/Mines | Discovered new exit (range 5) 3362 | -9/Mines | Identified exit to Exiles 3882 | -9/Mines | Discovered new exit (range 15) 3916 | -9/Mines | Identified exit to Materials 4054 | -9/Mines | Found the Drone Emporium 4064 | -9/Mines | Found Prototype Device 4064 | -9/Mines | Identified Splice Drone Bay 4111 | -9/Mines | Discovered exit to Materials (range 11) 4427 | -9/Mines | Entered Zion 4427 | -7/Zion | Accompanied by 7 allies 4477 | -7/Zion | Led the pair of lost Derelicts to a safe place 4503 | -7/Zion | System corruption cleaned by Quarantine Array 4684 | -7/Zion | Discovered new exit (range 16) 4704 | -7/Zion | Identified exit to Proximity Caves 5069 | -7/Zion | Learned Factory emergency access door positions 5086 | -7/Zion | Learned location of Data Miner (-6) 5151 | -7/Zion | Found CR-A16's Pointy Stick 5239 | -7/Zion | Imprinted 5241 | -7/Zion | Declared Zion's savior 5438 | -7/Zion | Received a hallucinogenic algorithm 5527 | -7/Zion | Given A8's code to call for help 5620 | -7/Zion | Found Prototype Launcher 5637 | -7/Zion | Identified Gui. Missile Launcher 5664 | -7/Zion | Learned location of Quarantine (-2) 6776 | -7/Zion | Entered Proximity Caves 6776 | -6/Proximity Caves | Accompanied by 10 allies 6776 | -6/Proximity Caves | Learned Factory emergency access door positions 7621 | -6/Proximity Caves | Discovered new exit (range 72) 8400 | -6/Proximity Caves | Attracted the attention of an 0b10 outpost 8496 | -6/Proximity Caves | Identified exit to Factory 8734 | -6/Proximity Caves | Learned Factory terminal intel 9311 | -6/Proximity Caves | Spotted B-75 Beast 9335 | -6/Proximity Caves | Destroyed B-75 Beast 10217 | -6/Proximity Caves | Build established: Scavenger-Mutant 10472 | -6/Proximity Caves | Entered Factory 10472 | -6/Factory | Evolved 6 slots: Power x1, Propulsion x2, Utility x3 10473 | -6/Factory | Identified exit to Lower Caves 10475 | -6/Factory | Loaded intel: 26 terminal locations 10487 | -6/Factory | Discovered new exit (range 34) 10889 | -6/Factory | Identified exit to Factory 10911 | -6/Factory | Entered another Factory area 10911 | -5/Factory | Evolved 2 slots: Weapon x2 10912 | -5/Factory | Identified exit to Extension 10967 | -5/Factory | Enhanced Grunt warped into view, answering call for help 10969 | -5/Factory | Enhanced Grunt warped into view, answering call for help 11088 | -5/Factory | Discovered new exit (range 13) 11108 | -5/Factory | Identified exit to Upper Caves 11109 | -5/Factory | Entered Upper Caves 11109 | -5/Upper Caves | Accompanied by 2 allies 11222 | -5/Upper Caves | Build established: Scavenger-Tank 11711 | -5/Upper Caves | Attracted the attention of an 0b10 checkpoint 11786 | -5/Upper Caves | Learned location of Warlord (-4) 12056 | -5/Upper Caves | Discovered new exit (range 7) 12065 | -5/Upper Caves | Identified exit to Upper Caves 12216 | -5/Upper Caves | Learned Factory emergency access door positions 12242 | -5/Upper Caves | Learned Factory trap positions 12550 | -5/Upper Caves | Acquired the password to a Derelict Tinkerer's latest research 12721 | -5/Upper Caves | Caught by Unaware searching for contraband prototypes 12725 | -5/Upper Caves | Caught by Unaware searching for contraband prototypes 12756 | -5/Upper Caves | Entered another Upper Caves area 12927 | -5/Upper Caves | Attracted the attention of an 0b10 checkpoint 12962 | -5/Upper Caves | Core integrity fell below 50% 12972 | -5/Upper Caves | Core integrity fell below 20% 13082 | -5/Upper Caves | Learned Factory stockpile data 13118 | -5/Upper Caves | CL-ANK showed up to help 13120 | -5/Upper Caves | CL-ANK revealed a hidden path 13130 | -5/Upper Caves | Identified exit to Factory 13131 | -5/Upper Caves | Entered Factory 13131 | -4/Factory | Evolved 2 slots: Propulsion x1, Utility x1 13132 | -4/Factory | Loaded intel: 85 trap records 13334 | -4/Factory | Core integrity fell below 50% 13435 | -4/Factory | Discovered new exit (range 22) 13476 | -4/Factory | Identified exit to Upper Caves 13477 | -4/Factory | Entered Upper Caves 13590 | -4/Upper Caves | Attracted the attention of an 0b10 checkpoint 13604 | -4/Upper Caves | Build established: Mutant 13698 | -4/Upper Caves | Attracted the attention of an 0b10 outpost 13752 | -4/Upper Caves | Learned 12 Research zone layouts 13754 | -4/Upper Caves | Learned location of Testing (-3) 13761 | -4/Upper Caves | Discovered new exit (range 5) 13762 | -4/Upper Caves | Identified exit to Upper Caves 14107 | -4/Upper Caves | Entered another Upper Caves area 14187 | -4/Upper Caves | Build established: Hacker-Mutant 14345 | -4/Upper Caves | Discovered new exit (range 50) 14463 | -4/Upper Caves | Identified exit to Research 14465 | -4/Upper Caves | Entered Research 14465 | -3/Research | Evolved 2 slots: Utility x2 14466 | -3/Research | Identified exit to Research 14467 | -3/Research | Identified exit to DSF 14569 | -3/Research | Entered DSF 14627 | -3/DSF | Additional patrols routed to DSF 14706 | -3/DSF | Discovered exit to Research (range 29) 14759 | -3/DSF | Entered Research 14759 | -2/Research | Evolved 2 slots: Propulsion x1, Utility x1 14790 | -2/Research | Lost 8 parts (3n5u) 15085 | -2/Research | System corruption reached 10% 15134 | -2/Research | Spotted B-90 Cyclops 15202 | -2/Research | Lost 6 parts (3p1n2u) 15274 | -2/Research | Lost 4 parts (2n2u) 15299 | -2/Research | Core integrity fell below 50% 15373 | -2/Research | Lost 3 parts (3n) 15386 | -2/Research | System corruption reached 30% 15415 | -2/Research | Build established: Mutant 15487 | -2/Research | Discovered new exit (range 12) 15496 | -2/Research | Core integrity fell below 20% 15509 | -2/Research | Search patrols dispatched 15541 | -2/Research | Spotted B-90 Cyclops 15555 | -2/Research | Destroyed by H-81 Overseer with Heavy Linear Accelerator Last Messages --------------- 15499_ Z7Z94:OPWHU:ZK#AXF74NKS 15504_ Acquired Biometal Heavy Treads. 15507_ Slug penetrates Wall. 15509_ ALERT: Heightened foreign activity detected, multiple search patrols dispatched. 15517_ System corrupted: Energy discharge (-24). 15517_ System corrupted: Slammed into wall. 15533_ System corrupted: Heat flow error (+199). 15544_ U-05 Engineer builds a Wall. 15547_ Fabricator disabled. 15548_ ENMKSTY47:0P0|YM%AXM=IYM:=V9W7 15554_ Centrium Wheel destroyed. 15554_ Penetrated by Slug. [Achievement: 10k Club] Map ----- +----------------------------------------------------+ | ?# ## * #?????????????????????????????????????? | | ?# ## #?????????????????????????????????????? | | ?# ## #????#????????????????????????????????? | | ?# ## !#??? ###??????????????????????????????? | | ?# ####/####??? ???????????????????????????????? | | ?# #??# #????? ???????? ???????????????????????? | | ?# #??# #???? ???????? #??????????????????????? | | ## #### #??? #??????? #??????????????????????? | | + #### #??????? #??????????????????????? | | # #?####? #??????????????????????? | | # ####?# #? #??????????????????????? | | + #???## ## #??????????????????????? | | ##+####### #???# #??????????????????????? | | ?????????# #???# B k##?????????????????????? | | ?????#####/##### B h +?????????????????????? | | ?????# # #??????????????????????? | | ?????# # #??????????????????????? | | ?????# # #??????????????????????? | | ?????# / #??????????????????????? | | ?????# ! ! # " " #??????????????????????? | | ?????# !# p F #????#+####????????????? | | ?????# = # "" #??? #????????????? | | ?????# # "" ### #????????????? | | ?????########### * #????????????? | | ???????????????# g H #????????????? | | ???????????????# % @ %g #????????????? | | ???????????????##;########+## A #????????????? | | ????????????????##?????????????? #????????????? | | ?????????????????????????????????????????????????? | | ?????????????????????????????????????????????????? | | ?????????????????????????????????????????????????? | | ?????????????????????????????????????????????????? | | ?????????????????????????????????????????????????? | | ?????????????????????????????????????????????????? | | ?????????????????????????????????????????????????? | | ?????????????????????????????????????????????????? | | ?????????????????????????????????????????????????? | | ?????????????????????????????????????????????????? | | ?????????????????????????????????????????????????? | | ?????????????????????????????????????????????????? | | ?????????????????????????????????????????????????? | | ?????????????????????????????????????????????????? | | ?????????????????????????????????????????????????? | | ?????????????????????????????????????????????????? | | ?????????????????????????????????????????????????? | | ?????????????????????????????????????????????????? | | ?????????????????????????????????????????????????? | | ?????????????????????????????????????????????????? | | ?????????????????????????????????????????????????? | | ?????????????????????????????????????????????????? | +----------------------------------------------------+ Best States ------------- Heat Dissipation 59 Energy Generation 45 Energy Capacity 520 Matter Stores 300 Matter Capacity 300 Sight Range 16 Robot Scan Range 20 Terrain Scan Density 10 ECM Strength 1 Jamming Range 14 Cloak Strength 3 Armor Coverage 675 Resistance: KI 20 Point Defense Rating 80 Evasion (%) 61 Recoil Reduction 5 Defensive Hacking 22 Item Schematics ----------------- None Robot Schematics ------------------ None Fabricated ------------ Nothing Alien Tech Used ----------------- None Achievements -------------- 10k Club Dangerous Findings Error 47 Factory Defaults Help From High Places Hunted I'm Back, Baby! Knowing Is Half The Battle Respectable Loadout Robot Respite Serviceable Loadout Slippery One The More The Merrier The One Total Silence Unlikely Earthworm Challenges ------------ None Game ------ Seed AntimatterReactionMachine Manual? 0 Play Time 04:09:18 Cumulative 11.8 hours Start 2024.04.08 @ 00:43:31 End 2024.04.08 @ 19:35:41 Sessions 2 Manual Loads 0 Difficulty Rogue Special Mode None Game No. 9 Rogue 9 Adventurer 0 Explorer 0 Win Type - Total 0 Types 0/0/0/0/0/0/0/0/0 Lore% 6 Gallery% 13 Achievement% 16 Wizard Run 0 Options --------- Layout 1 ASCII 0 Keyboard 0 Movement Mouse Keybinds 0 Fullscreen 2 Font 20/X11 Map View 64x42 Zoom Use 0% Tactical HUD 1 Map Filters NONE Filters NONE Steam 1 RUN: f9063492-9f89-4cb8-91c6-c9a91857bd58